Cogmind - Beta 14 @@@ ROGUE MODE // 2024.10.08 @ 17:24:32 Player: Gatamar Result: Destroyed by G-47 Trooper with Particle Gun Performance ------------- Evolutions (0) 0 Regions Visited (2) 400 Robots Destroyed (18) 90 Value Destroyed (494) 494 Prototype IDs (0) 0 Alien Tech Used (0) 0 Bonus (0) 0 TOTAL SCORE: 984 Bonus ------- None Cogmind --------- Core Integrity 0/250 Matter 277/300 Energy 100/100 System Corruption 0% Temperature Cool (9) Movement Core (1450) Ox28 Location -10/Mines Parts ------- > --- POWER (1) -------- (None) > --- PROPULSION (2) --- (None) > --- UTILITY (2) ------ Small Storage Unit Huge Storage Unit > --- WEAPON (2) ------- (None) > --- INVENTORY (25) --- Ion Engine Ion Engine Light Ion Engine Light Ion Engine Light Treads Light Treads Terrain Scan Processor Peak State ------------ > --- POWER ------------ Light Ion Engine > --- PROPULSION ------- Aluminum Leg Aluminum Leg > --- UTILITY ---------- Small Storage Unit Medium Armor Plating > --- WEAPON ----------- Assault Rifle Light Assault Rifle > --- INVENTORY -------- Ion Engine Light Ion Engine Light Treads Light Treads Improved Heat Sink EM Pulse Gun [Rating: 8] Favorites ----------- Power Light Ion Engine Engine Light Ion Engine Propulsion Aluminum Leg Leg Aluminum Leg Utility Small Storage Unit Storage Small Storage Unit Protection Medium Armor Plating Weapon Light Assault Rifle Energy Gun EM Pulse Gun Ballistic Gun Light Assault Rifle Launcher Grenade Launcher Special Weapon Mining Laser Build | -11 -10 -10 ------- Run | Yrd Mat Min Slots Evolved . | . . . Power . | . . . Propulsion . | . . . Utility . | . . . Weapon . | . . . Parts Attached 16 | 8 4 4 Power 2 | 1 . 1 Engine 2 | 1 . 1 Core . | . . . Reactor . | . . . Propulsion 3 | 2 1 . Treads . | . . . Leg 3 | 2 1 . Wheel . | . . . Hover . | . . . Flight . | . . . Utility 4 | 1 2 1 Device . | . . . Storage 2 | 1 . 1 Processor . | . . . Hackware . | . . . Protection 2 | . 2 . Artifact . | . . . Weapon 7 | 4 1 2 Energy Gun 2 | 1 1 . Energy Cannon . | . . . Ballistic Gun 3 | 3 . . Ballistic Cannon . | . . . Launcher 1 | . . 1 Special Weapon 1 | . . 1 Impact Weapon . | . . . Slashing Weapon . | . . . Piercing Weapon . | . . . Special Melee Weapon . | . . . Unidentified Prototypes . | . . . Parts Lost 9 | . 1 8 Power 1 | . . 1 Propulsion 2 | . . 2 Utility 1 | . . 1 Weapon 5 | . 1 4 Highest Loss Streak 5 | . 1 5 To Critical Strikes . | . . . Average Slot Usage (%) 90 | . 89 91 Engine 13 | . 14 13 Leg 27 | . 28 26 Storage 19 | . 14 25 Protection 5 | . 8 2 Energy Gun 1 | . 3 . Ballistic Gun 10 | . 20 2 Launcher 6 | . . 12 Special Weapon 3 | . . 6 Peak Build Rating 8 | 6 8 8 Average Rating 6 | 3 7 6 On Entrance 4 | . 6 8 Naked Turns . | . . . Heaviest Build 92 | 11 18 92 Greatest Support 20 | 20 20 20 Greatest Overweight (x) 29 | 2 . 29 Average Overweight (x) . | . . 2 Largest Inventory Capacity 25 | 8 8 25 Average Capacity 14 | 7 8 21 Most Carried 8 | 7 8 8 Average Carried 6 | 4 6 7 Final Capacity 25 | 8 8 25 Final Carried 8 | 4 8 7 Class Distribution -------------------- 100% | Mutant Dominant Class ---------------- Mutant | -10/Materials Mutant | -10/Mines Resources | -11 -10 -10 ----------- Run | Yrd Mat Min Matter Collected 548 | 229 244 75 Remotely . | . . . Salvage Created 516 | . 438 78 Parts 32 | . 22 10 Haulers Intercepted . | . . . Recyclers Shooed . | . . . Parts Field Recycled . | . . . Retrieved Matter . | . . . Parts Self-Destructed . | . . . Prevented . | . . . Kills | -11 -10 -10 ------- Run | Yrd Mat Min Combat Hostiles Destroyed 16 | . 8 8 Guns 7 | . 7 . AOE 9 | . 1 8 Classes Destroyed 4 | . 3 1 Recycler 1 | . 1 . Watcher 1 | . 1 . Swarmer 6 | . . 6 Grunt 10 | . 8 2 Best Kill Streak 4 | . 4 3 Combat Bots Only 3 | . 2 3 Max Kills in Single Turn 3 | . 3 3 Gunslinging . | . . . Exploded 3 | . 1 3 Melee . | . . . Uniques/NPCs Destroyed . | . . . Combat | -11 -10 -10 -------- Run | Yrd Mat Min Hostile Shots Fired 108 | . 64 44 Missed 31 | . 17 14 Damage Taken 1173 | . 578 595 Core 257 | . 132 125 Absorbed by Shields . | . . . Core Remaining (%) 100 | 100 . . Volleys Fired 58 | . 47 11 Largest 2 | . 2 2 Hottest 130 | . 60 130 Shots Fired 109 | . 90 19 Gun 99 | . 90 9 Cannon . | . . . Launcher 9 | . . 9 Special 1 | . . 1 Kinetic 91 | . 84 7 Thermal 1 | . . 1 Explosive 9 | . . 9 Electromagnetic 8 | . 6 2 Robot Hit Streak 7 | . 7 6 Robot Miss Streak 5 | . 4 5 Penetration Max . | . . . Secondary Targets 2 | . 2 . Max Gunslinging Chain 1 | . 1 . Shots Hit Robots 63 | . 52 11 Core Hits 35 | . 23 12 Critical Kills . | . . . Critical Parts Destroyed 1 | . 1 . Critical Strikes 1 | . 1 . Destroy 1 | . 1 . Melee Attacks . | . . . Impact . | . . . Slashing . | . . . Piercing . | . . . Sneak Attacks . | . . . Combat Hostiles . | . . . Follow-up Attacks . | . . . Damage Inflicted 1301 | . 702 599 Guns 609 | . 569 40 Cannons . | . . . Explosions 691 | . 133 558 Melee . | . . . Ramming 1 | . . 1 Kinetic 528 | . 500 28 Thermal 305 | . 133 172 Explosive 386 | . . 386 Electromagnetic 81 | . 69 12 Impact . | . . . Slashing . | . . . Piercing . | . . . Highest Corruption . | . . . Average Corruption . | . . . Corruption Purged . | . . . Corruption Blocked . | . . . Overload Shots . | . . . Overflow Damage 84 | . . 84 Projectiles . | . . . Explosions 84 | . . 84 Melee . | . . . Knockbacks . | . . . Impact . | . . . Kinetic . | . . . Secondary . | . . . Self-Inflicted Damage 214 | . . 214 Shots 6 | . . 6 Rammed 1 | . . 1 Targets Rammed 1 | . . 1 Kicked . | . . . Crushed . | . . . Highest Temperature 145 | . 145 72 Average Temperature 35 | . 38 30 Received Heat Transfer 537 | . 327 210 Siege Activations . | . . . Robots Corrupted . | . . . Combat Hostiles . | . . . Parts Fried . | . . . Impact Corruptions . | . . . Robots Melted . | . . . Combat Hostiles . | . . . Parts Melted . | . . . Heat Transferred 350 | . 100 250 Parts Sabotaged . | . . . Parts Stolen . | . . . Parts Stripped . | . . . Power Chain Reactions 2 | . 1 1 Alert | -11 -10 -10 ------- Run | Yrd Mat Min Peak Influence 266 | . 169 266 Initial 30 | . . 30 Average 134 | . 100 182 Maximum Alert Level 1 | . . 1 Low Security (%) 79 | 100 100 58 Level 1 20 | . . 41 Level 2 . | . . . Level 3 . | . . . Level 4 . | . . . Level 5 . | . . . High Security . | . . . Max Security . | . . . Squads Dispatched 1 | . 1 . Investigation . | . . . Extermination . | . . . Reinforcement 1 | . 1 . Assault . | . . . Garrison . | . . . Intercept . | . . . Searches Triggered . | . . . Construction Impeded . | . . . Haulers Reinforced . | . . . Active Scanning Responses . | . . . Cargo Convoy Interrupts . | . . . Stealth | -11 -10 -10 --------- Run | Yrd Mat Min Distress Signals 1 | . 1 . Communications Jammed . | . . . Distress Signals . | . . . Times Spotted 22 | . 12 10 Peak Tracking Total 3 | . 3 3 Tactical Retreats . | . . . Traps | -11 -10 -10 ------- Run | Yrd Mat Min Traps Triggered . | . . . Indirectly . | . . . Trap Hack Attempts . | . . . Triggered . | . . . Disarmed . | . . . Reprogrammed . | . . . Reused . | . . . Traps Extracted . | . . . Installed . | . . . Triggered . | . . . Machines | -11 -10 -10 ---------- Run | Yrd Mat Min Machines Disabled 3 | . 1 2 Max in Single Turn 2 | . 1 2 Machines Repaired . | . . . Machines Dismantled . | . . . Machines Sabotaged . | . . . Overloaded Fab Kills . | . . . Hacking | -11 -10 -10 --------- Run | Yrd Mat Min Machines Accessed 1 | . 1 . Terminals 1 | . 1 . Fabricators . | . . . Repair Stations . | . . . Recycling Units . | . . . Scanalyzers . | . . . Garrison Access . | . . . Total Hacks 3 | . 3 . Successful 3 | . 3 . Failed . | . . . Catastrophic . | . . . Database Lockouts . | . . . Manual . | . . . Terminals 3 | . 3 . Fabricators . | . . . Repair Stations . | . . . Recycling Units . | . . . Scanalyzers . | . . . Garrison Access . | . . . Terminal Hacks 3 | . 3 . Record 1 | . 1 . Level Access Points 1 | . 1 . Investigation Status 1 | . 1 . Fabricator Hacks . | . . . Repair Station Hacks . | . . . Recycling Unit Hacks . | . . . Scanalyzer . | . . . Garrison Access Hacks . | . . . Unauthorized Hacks . | . . . Terminals . | . . . Fabricators . | . . . Repair Stations . | . . . Recycling Units . | . . . Scanalyzers . | . . . Garrison Access . | . . . Data Cores Recovered . | . . . Used . | . . . Hacking Detections . | . . . Full Trace Events . | . . . Feedback Events . | . . . Feedback Blocked . | . . . Robot Schematics Acquired . | . . . Robots Built . | . . . Authchips . | . . . Time . | . . . Total Robot Build Rating . | . . . Part Schematics Acquired . | . . . Parts Built . | . . . Authchips . | . . . Time . | . . . Total Part Build Rating . | . . . Parts Repaired . | . . . Time . | . . . Parts Recycled . | . . . Recycled Matter . | . . . Retrieved Matter . | . . . Retrieved Components . | . . . Parts Scanalyzed . | . . . Part Schematics Acquired . | . . . Parts Damaged . | . . . Bothacking | -11 -10 -10 ------------ Run | Yrd Mat Min Used RIF Installer . | . . . Robots Hacked . | . . . Non-combat . | . . . Combat . | . . . Robot Hacks Applied . | . . . Relay Couplers Released . | . . . Fabnet Peak Effective % . | . . . Robots Rewired . | . . . Allies Hacked . | . . . Hacks Repelled . | . . . Allies | -11 -10 -10 -------- Run | Yrd Mat Min Total Allies . | . . . Largest Group . | . . . Highest-Rated Group . | . . . Highest-Rated Ally . | . . . Total Orders . | . . . Ally Attacks . | . . . Total Damage . | . . . Kills . | . . . Allies Corrupted . | . . . Allies Melted . | . . . Intel | -11 -10 -10 ------- Run | Yrd Mat Min Robot Analysis Total . | . . . Derelict Logs Recovered . | . . . Drone Launches . | . . . Drone Recoveries . | . . . Exploration | -11 -10 -10 ------------- Run | Yrd Mat Min Turns Passed 1032 | 71 454 507 Spaces Moved 450 | 51 258 141 Core 29 | 28 . 1 Treads . | . . . Legs 421 | 23 258 140 Wheels . | . . . Hover . | . . . Flight . | . . . Fastest Speed 50 | 50 120 120 Average Speed 179 | 106 120 316 Slowest Speed 1500 | 150 120 1500 Overloaded Moves . | . . . Propulsion Burnouts . | . . . Robots Hopped . | . . . Cave-ins Triggered . | . . . Exploration Rate (%) 29 | 4 33 50 Regions Visited 2 Branch Regions 1 Pre-discovered Areas . | . . . Known Exits Taken . | . . . Unknown Exits Taken 2 | 1 1 . Scrap Searched 2 | . . 2 Spaces Dug . | . . . Terrain Destroyed 62 | . 1 61 Melee . | . . . Projectile . | . . . AOE 62 | . 1 61 Terrain Rammed . | . . . Walls Destroyed . | . . . Machines Disabled . | . . . Actions | -11 -10 -10 --------- Run | Yrd Mat Min Total 571 | 65 326 180 Wait 24 | . 1 23 Move 448 | 50 257 141 Hop . | . . . Pick Up 18 | 7 11 . Fast Attach 4 | 3 . 1 Attach 7 | 3 2 2 Detach . | . . . Swap 5 | 2 2 1 Drop 6 | . 6 . Fire 58 | . 47 11 Melee . | . . . Ram 1 | . . 1 Kick . | . . . Crush . | . . . Escape Stasis . | . . . Rewire . | . . . Trap . | . . . Miscellaneous . | . . . Route ------- -11/Scrapyard -10/Materials (discovered 5 exits: Mat x3 / [*Min x2]) -10/Mines (discovered 1 exit: *Mat) History --------- Turn | Location | Event 7 | -11/Scrapyard | Discovered new exit (range 16) 72 | -11/Scrapyard | Entered Materials 75 | -10/Materials | Discovered new exit (range 14) 320 | -10/Materials | Build established: Mutant 380 | -10/Materials | Identified exit to Materials 466 | -10/Materials | Discovered new exit (range 10) 504 | -10/Materials | Core integrity fell below 50% 526 | -10/Materials | Entered Mines 1007 | -10/Mines | Discovered exit to Materials (range 7) 1028 | -10/Mines | Core integrity fell below 20% 1033 | -10/Mines | Destroyed by G-47 Trooper with Particle Gun Last Messages --------------- 00731_ K-01 Serf collects debris. 00731_ R-06 Scavenger collects Flight Unit. 00735_ K-01 Serf collects debris. 00743_ R-06 Scavenger collects Lgt. Assault Rifle. 00745_ The unstable cave ceiling collapses. 00772_ K-01 Serf collects debris. 01007_ Critical hit (Burn: +37). 01007_ Grenade Launcher destroyed. 01007_ Destroyed Grenade Launcher. 01007_ EXIT=FOUND: MATERIALS 01013_ Aluminum Leg destroyed. 01014_ U-05 Engineer builds a Wall. 01015_ Mining Laser destroyed. 01020_ U-05 Engineer lays Concrete. 01021_ U-05 Engineer builds a Wall. 01025_ U-05 Engineer lays Concrete. 01026_ Lgt. Ion Engine destroyed. 01026_ U-05 Engineer builds a Wall. 01031_ Slammed into G-34 Mercenary. Map ----- +----------------------------------------------------+ | | | | | | | | | | | | | | | | | | | | | | | | | | | | | | | | | | | | | ????????????????????????????????????? | | ????????????????????????????????????? | | ????????????????????????????????????? | | ????????????????????????????????????? | | ????????????????????????????????????? | | ??????????##???????????########?????? | | ??????????# #???????####### #?????? | | ??????????# ##?????# g@g #?????? | | ??????????# ##????# #####u ##?????? | | ?????????## ##???# #??# #?????? | | ????????## #???# #?? #???? | | ???????## ##??# #?? #???? | | ??????## #??# #?? #???? | | ## #### #??# #?? """ #???? | | # #### #?# < """ #???? | | # #?# """ #???? | | ??#???# #?# ??#???? | | # #???### #############???????? | | #?????## ##??????????? | | ?????????## ##?????????? | | ??????????## ###### ##????????? | | ???????????# ###?## #????????? | | ??????????# ##?# ##?###???? | | ####?????# #?# ## ##??? | | # ##???# ### #??? | | ##### ### #??? | | ## ##### #??? | | # #### #??? | | ## ### ##??? | | ### ##?## ##???? | | ##?####### #????###????? | | ## ##???????# #???????????? | +----------------------------------------------------+ Best States ------------- Heat Dissipation 25 Energy Generation 10 Energy Capacity 125 Matter Stores 300 Matter Capacity 300 Sight Range 16 Terrain Scan Density 10 Armor Coverage 225 Evasion (%) 55 Item Schematics ----------------- None Robot Schematics ------------------ None Fabricated ------------ Nothing Alien Tech Used ----------------- None Achievements -------------- None Challenges ------------ None Game ------ Seed ExpertGhostClaw Manual? 0 Play Time 00:07:35 Cumulative 7.7 hours Start 2024.10.08 @ 17:12:52 End 2024.10.08 @ 17:24:32 Sessions 1 Manual Loads 0 Difficulty Rogue Special Mode None Game No. 25 Rogue 25 Adventurer 0 Explorer 0 Win Type - Total 0 Types 0/0/0/0/0/0/0/0/0 Lore% 5 Gallery% 11 Achievement% 11 Wizard Run 0 Options --------- Layout 1 ASCII 0 Keyboard 0 Movement Numpad Keybinds 0 Fullscreen 1 Font 32/SmallcapsGlow Map View 50x35 Zoom Use 0% Tactical HUD 1 Map Filters NONE Filters NONE Steam 1 RUN: d1003479-722a-43fd-b2f7-ba12e77e2772